[Event "*** Titled Tuesday Blitz"]
[Site "Chess.com"]
[Date "2020.05.05"]
[Round "5"]
[White "THE_PLAYER6"]
[Black "BilguunSu"]
[Result "1/2-1/2"]
[WhiteElo "2426"]
[BlackElo "2585"]
[TimeControl "180+1"]
[EndTime "10:58:09 PDT"]
[Termination "Game drawn - insufficient material"]

1. d4 {[%clk 0:03:00.9]} 1... Nf6 {[%clk 0:02:58.7]} 2. c4 {[%clk 0:03:00.4]}
2... e6 {[%clk 0:02:58.2]} 3. Nc3 {[%clk 0:03:00.6]} 3... Bb4 {[%clk 0:02:57.7]}
4. g3 {[%clk 0:03:00.7]} 4... O-O {[%clk 0:02:48.5]} 5. Bg2 {[%clk 0:03:00.5]}
5... c5 {[%clk 0:02:47.6]} 6. Nf3 {[%clk 0:03:00.8]} 6... cxd4 {[%clk
0:02:45.9]} 7. Nxd4 {[%clk 0:03:00.6]} 7... Nc6 {[%clk 0:02:46.1]} 8. O-O {[%clk
0:02:57.8]} 8... a6 {[%clk 0:02:45.5]} 9. Bf4 {[%clk 0:02:42.1]} 9... Qe7 {[%clk
0:02:42.8]} 10. Nxc6 {[%clk 0:02:36.3]} 10... dxc6 {[%clk 0:02:35.6]} 11. a3
{[%clk 0:02:32.5]} 11... Bc5 {[%clk 0:02:22.6]} 12. b4 {[%clk 0:02:30.8]} 12...
Rd8 {[%clk 0:02:16.1]} 13. Qb3 {[%clk 0:02:25.5]} 13... e5 {[%clk 0:02:12.6]}
14. Bg5 {[%clk 0:02:23.3]} 14... Bd4 {[%clk 0:02:09.6]} 15. Rad1 {[%clk
0:02:22.5]} 15... Bf5 {[%clk 0:02:01.3]} 16. e3 {[%clk 0:02:19.1]} 16... Bxc3
{[%clk 0:01:57.2]} 17. Qxc3 {[%clk 0:02:18.7]} 17... h6 {[%clk 0:01:57.7]} 18.
Bxf6 {[%clk 0:02:17.5]} 18... Qxf6 {[%clk 0:01:57.6]} 19. c5 {[%clk 0:02:13.4]}
19... Bg4 {[%clk 0:01:53.9]} 20. f3 {[%clk 0:02:11]} 20... Be6 {[%clk
0:01:36.3]} 21. f4 {[%clk 0:02:05.4]} 21... exf4 {[%clk 0:01:27.2]} 22. Qxf6
{[%clk 0:02:04.8]} 22... gxf6 {[%clk 0:01:27.5]} 23. exf4 {[%clk 0:02:03.5]}
23... Bb3 {[%clk 0:01:26.7]} 24. Rxd8+ {[%clk 0:02:00.9]} 24... Rxd8 {[%clk
0:01:25.7]} 25. Re1 {[%clk 0:01:58.6]} 25... Kf8 {[%clk 0:01:24.9]} 26. Re3
{[%clk 0:01:54.7]} 26... Bc4 {[%clk 0:01:22.1]} 27. Bf3 {[%clk 0:01:48.2]} 27...
Rd2 {[%clk 0:01:19.2]} 28. Bg4 {[%clk 0:01:39.6]} 28... a5 {[%clk 0:01:06.3]}
29. Bc8 {[%clk 0:01:33.8]} 29... Ba6 {[%clk 0:01:00.5]} 30. bxa5 {[%clk
0:01:28.7]} 30... Rc2 {[%clk 0:00:59.4]} 31. Rb3 {[%clk 0:01:25.6]} 31... Rxc5
{[%clk 0:00:55.8]} 32. Bxb7 {[%clk 0:01:25.9]} 32... Bxb7 {[%clk 0:00:52.6]} 33.
Rxb7 {[%clk 0:01:26.8]} 33... Rxa5 {[%clk 0:00:52.9]} 34. Rb3 {[%clk 0:01:25]}
34... Ke7 {[%clk 0:00:51.8]} 35. Kf2 {[%clk 0:01:25]} 35... Kd6 {[%clk
0:00:48.9]} 36. Kf3 {[%clk 0:01:24]} 36... Kd5 {[%clk 0:00:47.3]} 37. Kg4 {[%clk
0:01:19.9]} 37... h5+ {[%clk 0:00:40.8]} 38. Kh4 {[%clk 0:01:18.5]} 38... c5
{[%clk 0:00:33.5]} 39. Rb7 {[%clk 0:01:15.4]} 39... c4 {[%clk 0:00:33.2]} 40.
Rd7+ {[%clk 0:01:08.1]} 40... Ke4 {[%clk 0:00:32.5]} 41. Rxf7 {[%clk 0:01:02.9]}
41... c3 {[%clk 0:00:32.4]} 42. Rc7 {[%clk 0:00:55.9]} 42... Kd4 {[%clk
0:00:31.8]} 43. Re7 {[%clk 0:00:44.5]} 43... c2 {[%clk 0:00:29.3]} 44. Re1
{[%clk 0:00:44.8]} 44... Kd3 {[%clk 0:00:26]} 45. h3 {[%clk 0:00:39.5]} 45...
Kd2 {[%clk 0:00:25]} 46. Rg1 {[%clk 0:00:39.4]} 46... Rf5 {[%clk 0:00:22.9]} 47.
g4 {[%clk 0:00:33.1]} 47... hxg4 {[%clk 0:00:21.7]} 48. Kxg4 {[%clk 0:00:32.4]}
48... Ra5 {[%clk 0:00:14.8]} 49. h4 {[%clk 0:00:31.7]} 49... c1=Q {[%clk
0:00:11.6]} 50. Rxc1 {[%clk 0:00:31]} 50... Kxc1 {[%clk 0:00:10.8]} 51. h5
{[%clk 0:00:31.4]} 51... Rxa3 {[%clk 0:00:07.5]} 52. Kf5 {[%clk 0:00:29.1]}
52... Ra5+ {[%clk 0:00:07.4]} 53. Kg6 {[%clk 0:00:29]} 53... Kd2 {[%clk
0:00:07.6]} 54. h6 {[%clk 0:00:28.8]} 54... Ke3 {[%clk 0:00:08.1]} 55. h7 {[%clk
0:00:28.2]} 55... Ra8 {[%clk 0:00:08.3]} 56. Kxf6 {[%clk 0:00:11.8]} 56... Kxf4
{[%clk 0:00:08.7]} 57. Kg7 {[%clk 0:00:12.3]} 57... Ra7+ {[%clk 0:00:08.5]} 58.
Kf6 {[%clk 0:00:11.5]} 58... Ra8 {[%clk 0:00:08.1]} 59. Kg7 {[%clk 0:00:09.8]}
59... Kg5 {[%clk 0:00:08.3]} 60. h8=Q {[%clk 0:00:06.7]} 60... Rxh8 {[%clk
0:00:08.3]} 61. Kxh8 {[%clk 0:00:06.9]} 1/2-1/2

[Event "*** Titled Tuesday Blitz"]
[Site "Chess.com"]
[Date "2020.05.05"]
[Round "5"]
[White "lamomiablanca"]
[Black "dbrankovic68"]
[Result "1-0"]
[WhiteElo "2154"]
[BlackElo "2451"]
[TimeControl "180+1"]
[EndTime "10:58:11 PDT"]
[Termination "lamomiablanca won by resignation"]

1. Nf3 {[%clk 0:03:00.9]} 1... Nf6 {[%clk 0:02:59.1]} 2. g3 {[%clk 0:03:00.4]}
2... g6 {[%clk 0:02:59.1]} 3. Bg2 {[%clk 0:03:00]} 3... Bg7 {[%clk 0:03:00]} 4.
O-O {[%clk 0:03:00.1]} 4... O-O {[%clk 0:03:00.9]} 5. c4 {[%clk 0:03:00.3]} 5...
d6 {[%clk 0:03:01.8]} 6. d4 {[%clk 0:02:56.3]} 6... Nbd7 {[%clk 0:02:59.7]} 7.
Nc3 {[%clk 0:02:56.3]} 7... e5 {[%clk 0:03:00]} 8. e4 {[%clk 0:02:56.1]} 8... c6
{[%clk 0:03:00.2]} 9. h3 {[%clk 0:02:55.7]} 9... Re8 {[%clk 0:02:55.5]} 10. Re1
{[%clk 0:02:55]} 10... exd4 {[%clk 0:02:55.1]} 11. Nxd4 {[%clk 0:02:54.4]} 11...
Qb6 {[%clk 0:02:53]} 12. Nb3 {[%clk 0:02:32.5]} 12... Qb4 {[%clk 0:02:43.3]} 13.
Bf1 {[%clk 0:02:29.1]} 13... Nc5 {[%clk 0:01:54.1]} 14. Nxc5 {[%clk 0:02:10.7]}
14... Qxc5 {[%clk 0:01:49.9]} 15. Be3 {[%clk 0:01:55.7]} 15... Qb4 {[%clk
0:01:45.6]} 16. Qc2 {[%clk 0:01:55.5]} 16... Nd7 {[%clk 0:01:29.4]} 17. a3
{[%clk 0:01:52.5]} 17... Qa5 {[%clk 0:01:29.1]} 18. b4 {[%clk 0:01:51.5]} 18...
Qh5 {[%clk 0:01:22.7]} 19. g4 {[%clk 0:01:30.8]} 19... Qh4 {[%clk 0:01:15.4]}
20. Bf4 {[%clk 0:01:23.1]} 20... Ne5 {[%clk 0:01:13.6]} 21. Re3 {[%clk
0:01:15.1]} 21... Qf6 {[%clk 0:01:10.3]} 22. Bg3 {[%clk 0:01:07.6]} 22... Bh6
{[%clk 0:01:07.6]} 23. Re2 {[%clk 0:00:56.1]} 23... Nf3+ {[%clk 0:01:00.6]} 24.
Kg2 {[%clk 0:00:55.5]} 24... Nd4 {[%clk 0:01:00.6]} 25. Qd3 {[%clk 0:00:55]}
25... Nxe2 {[%clk 0:01:00.6]} 26. Bxe2 {[%clk 0:00:54.4]} 26... Bf4 {[%clk
0:00:45.6]} 27. Rd1 {[%clk 0:00:47.9]} 27... Bxg3 {[%clk 0:00:43.2]} 28. Qxg3
{[%clk 0:00:48]} 28... Qe5 {[%clk 0:00:30.9]} 29. f4 {[%clk 0:00:47.2]} 29...
Qe7 {[%clk 0:00:30.2]} 30. Qd3 {[%clk 0:00:44.8]} 30... Be6 {[%clk 0:00:29.2]}
31. f5 {[%clk 0:00:40]} 31... Bc8 {[%clk 0:00:28.7]} 32. Qxd6 {[%clk 0:00:33.4]}
32... Qxd6 {[%clk 0:00:28.3]} 33. Rxd6 {[%clk 0:00:33.2]} 33... Kf8 {[%clk
0:00:25.7]} 34. c5 {[%clk 0:00:32.9]} 34... Ke7 {[%clk 0:00:23.6]} 35. Kf3
{[%clk 0:00:26.9]} 35... Bd7 {[%clk 0:00:21.5]} 36. e5 {[%clk 0:00:25.8]} 36...
Rad8 {[%clk 0:00:20.5]} 37. Kf4 {[%clk 0:00:22.2]} 37... Bc8 {[%clk 0:00:19.4]}
38. Ne4 {[%clk 0:00:21.6]} 38... gxf5 {[%clk 0:00:18.6]} 39. gxf5 {[%clk
0:00:21.5]} 39... Rg8 {[%clk 0:00:17.6]} 40. Nf6 {[%clk 0:00:21.5]} 40... Rg1
{[%clk 0:00:15.9]} 41. Bf3 {[%clk 0:00:18.2]} 41... Re1 {[%clk 0:00:14.9]} 42.
Ne4 {[%clk 0:00:17.8]} 42... Rf1 {[%clk 0:00:13.9]} 43. f6+ {[%clk 0:00:17.6]}
43... Ke8 {[%clk 0:00:14.1]} 44. Ke3 {[%clk 0:00:17.9]} 44... Be6 {[%clk
0:00:13]} 45. Ng5 {[%clk 0:00:17.1]} 45... Re1+ {[%clk 0:00:12.7]} 46. Kf4
{[%clk 0:00:16.5]} 46... Bc4 {[%clk 0:00:12.4]} 47. Nxh7 {[%clk 0:00:15.8]}
47... Rf1 {[%clk 0:00:12.5]} 48. Ng5 {[%clk 0:00:14.7]} 48... Bd5 {[%clk
0:00:11]} 49. h4 {[%clk 0:00:14.3]} 49... Rxd6 {[%clk 0:00:10.8]} 50. cxd6
{[%clk 0:00:11.7]} 50... Bxf3 {[%clk 0:00:10.4]} 51. Nxf3 {[%clk 0:00:11.4]}
51... b6 {[%clk 0:00:10.5]} 52. h5 {[%clk 0:00:11.4]} 52... c5 {[%clk
0:00:10.1]} 53. bxc5 {[%clk 0:00:10.5]} 53... bxc5 {[%clk 0:00:09.6]} 54. h6
{[%clk 0:00:10.9]} 54... Rh1 {[%clk 0:00:09.4]} 55. Kg5 {[%clk 0:00:09.8]} 55...
Rg1+ {[%clk 0:00:09.4]} 56. Kh5 {[%clk 0:00:08.5]} 56... Rh1+ {[%clk 0:00:08.9]}
57. Nh4 {[%clk 0:00:08.5]} 57... Kf8 {[%clk 0:00:07]} 58. h7 {[%clk 0:00:08.5]}
58... Rxh4+ {[%clk 0:00:06.4]} 59. Kxh4 {[%clk 0:00:07.8]} 59... Ke8 {[%clk
0:00:07.3]} 60. h8=Q+ {[%clk 0:00:07.6]} 1-0

[Event "*** Titled Tuesday Blitz"]
[Site "Chess.com"]
[Date "2020.05.05"]
[Round "5"]
[White "Leo_C"]
[Black "Margarita2907"]
[Result "0-1"]
[WhiteElo "2273"]
[BlackElo "1994"]
[TimeControl "180+1"]
[EndTime "10:58:19 PDT"]
[Termination "Margarita2907 won by checkmate"]

1. d4 {[%clk 0:03:00.9]} 1... Nf6 {[%clk 0:02:57.7]} 2. Bf4 {[%clk 0:03:00.5]}
2... e6 {[%clk 0:02:56.4]} 3. e3 {[%clk 0:03:00.4]} 3... d5 {[%clk 0:02:56.7]}
4. Nf3 {[%clk 0:02:59.5]} 4... Bd6 {[%clk 0:02:56.5]} 5. Bg3 {[%clk 0:02:59.7]}
5... O-O {[%clk 0:02:56.2]} 6. Bd3 {[%clk 0:02:58.1]} 6... c5 {[%clk 0:02:55.7]}
7. c3 {[%clk 0:02:57.8]} 7... b6 {[%clk 0:02:55.4]} 8. Nbd2 {[%clk 0:02:57.4]}
8... Bb7 {[%clk 0:02:53.6]} 9. O-O {[%clk 0:02:56.8]} 9... Nc6 {[%clk
0:02:51.6]} 10. Ne5 {[%clk 0:02:56.4]} 10... Qc7 {[%clk 0:02:46.7]} 11. f4
{[%clk 0:02:56]} 11... Ne7 {[%clk 0:02:44.8]} 12. Qc2 {[%clk 0:02:53.7]} 12...
c4 {[%clk 0:02:41.6]} 13. Be2 {[%clk 0:02:52.5]} 13... b5 {[%clk 0:02:40.9]} 14.
Bf3 {[%clk 0:02:45.2]} 14... a5 {[%clk 0:02:31.4]} 15. Bh4 {[%clk 0:02:44.6]}
15... Nd7 {[%clk 0:02:19.5]} 16. e4 {[%clk 0:02:32.5]} 16... f6 {[%clk
0:02:16.4]} 17. Nxd7 {[%clk 0:02:31.6]} 17... Qxd7 {[%clk 0:02:14.2]} 18. e5
{[%clk 0:02:31.4]} 18... fxe5 {[%clk 0:02:10.8]} 19. fxe5 {[%clk 0:02:31.2]}
19... Bc7 {[%clk 0:02:05.4]} 20. Bg4 {[%clk 0:02:30.5]} 20... Ng6 {[%clk
0:02:01.9]} 21. Bg3 {[%clk 0:02:25]} 21... b4 {[%clk 0:01:53.1]} 22. Nf3 {[%clk
0:02:24.3]} 22... bxc3 {[%clk 0:01:49.3]} 23. bxc3 {[%clk 0:02:25.2]} 23... Bd8
{[%clk 0:01:29.7]} 24. Rab1 {[%clk 0:02:21.1]} 24... Bc6 {[%clk 0:01:25.1]} 25.
Qb2 {[%clk 0:02:13.7]} 25... Nf4 {[%clk 0:01:13.6]} 26. Qd2 {[%clk 0:01:53.9]}
26... Nd3 {[%clk 0:01:08.3]} 27. Ng5 {[%clk 0:01:51.9]} 27... Bxg5 {[%clk
0:01:05.4]} 28. Qxg5 {[%clk 0:01:51.8]} 28... Ba4 {[%clk 0:00:51.2]} 29. h4
{[%clk 0:01:41.3]} 29... Bc2 {[%clk 0:00:48.9]} 30. Rxf8+ {[%clk 0:01:36.2]}
30... Rxf8 {[%clk 0:00:45]} 31. Rb6 {[%clk 0:01:35]} 31... Re8 {[%clk
0:00:36.7]} 32. Rxe6 {[%clk 0:01:02.6]} 32... Rxe6 {[%clk 0:00:27.5]} 33. Qf5
{[%clk 0:01:02.5]} 33... Re7 {[%clk 0:00:19.5]} 34. Qxd7 {[%clk 0:01:02.4]}
34... Rxd7 {[%clk 0:00:17.2]} 35. Bxd7 {[%clk 0:01:03.3]} 35... Kf7 {[%clk
0:00:16.3]} 36. e6+ {[%clk 0:01:01.2]} 36... Ke7 {[%clk 0:00:15.9]} 37. Bc7
{[%clk 0:00:58.2]} 37... a4 {[%clk 0:00:14.8]} 38. Ba5 {[%clk 0:00:55.2]} 38...
a3 {[%clk 0:00:13.9]} 39. Kh2 {[%clk 0:00:53.1]} 39... Bb1 {[%clk 0:00:13.5]}
40. Bb6 {[%clk 0:00:34.7]} 40... Bxa2 {[%clk 0:00:08.1]} 41. Bc5+ {[%clk
0:00:34.8]} 41... Nxc5 {[%clk 0:00:06.5]} 42. dxc5 {[%clk 0:00:35.1]} 42... Bb3
{[%clk 0:00:05.5]} 43. c6 {[%clk 0:00:35.5]} 43... Kd6 {[%clk 0:00:04.1]} 44. c7
{[%clk 0:00:23.5]} 44... Kxc7 {[%clk 0:00:03.8]} 45. Be8 {[%clk 0:00:21.6]}
45... Kd6 {[%clk 0:00:03.4]} 46. Bg6 {[%clk 0:00:19.8]} 46... hxg6 {[%clk
0:00:02.3]} 47. e7 {[%clk 0:00:20.7]} 47... Kxe7 {[%clk 0:00:02.4]} 48. Kg3
{[%clk 0:00:19.2]} 48... a2 {[%clk 0:00:02.7]} 49. Kg4 {[%clk 0:00:19.7]} 49...
a1=Q {[%clk 0:00:02.7]} 50. Kg5 {[%clk 0:00:20.1]} 50... Qxc3 {[%clk 0:00:03.1]}
51. Kxg6 {[%clk 0:00:20.2]} 51... Qd3+ {[%clk 0:00:04]} 52. Kxg7 {[%clk
0:00:20.1]} 52... c3 {[%clk 0:00:04.9]} 53. Kh8 {[%clk 0:00:19.4]} 53... c2
{[%clk 0:00:05.8]} 54. Kg7 {[%clk 0:00:20.3]} 54... c1=Q {[%clk 0:00:05.9]} 55.
Kh8 {[%clk 0:00:21.2]} 55... Qcd2 {[%clk 0:00:06.4]} 56. Kg7 {[%clk 0:00:22.1]}
56... Qxg2+ {[%clk 0:00:02.6]} 57. Kh8 {[%clk 0:00:23]} 57... Qdh3 {[%clk
0:00:02.9]} 58. Kh7 {[%clk 0:00:22.6]} 58... Qxh4# {[%clk 0:00:03.8]} 0-1

[Event "*** Titled Tuesday Blitz"]
[Site "Chess.com"]
[Date "2020.05.05"]
[Round "5"]
[White "Omk124"]
[Black "mitraasz"]
[Result "1/2-1/2"]
[WhiteElo "2388"]
[BlackElo "2214"]
[TimeControl "180+1"]
[EndTime "10:58:20 PDT"]
[Termination "Game drawn by repetition"]

1. e4 {[%clk 0:03:00.9]} 1... c5 {[%clk 0:02:58.1]} 2. Nf3 {[%clk 0:03:00.8]}
2... d6 {[%clk 0:02:57.7]} 3. d4 {[%clk 0:03:00.9]} 3... cxd4 {[%clk 0:02:57.9]}
4. Nxd4 {[%clk 0:03:01.5]} 4... Nf6 {[%clk 0:02:57.4]} 5. Nc3 {[%clk 0:03:01.8]}
5... g6 {[%clk 0:02:57.7]} 6. Be3 {[%clk 0:03:01.2]} 6... Bg7 {[%clk 0:02:58]}
7. f3 {[%clk 0:03:01.8]} 7... O-O {[%clk 0:02:58.7]} 8. Qd2 {[%clk 0:03:02.2]}
8... Nc6 {[%clk 0:02:59.6]} 9. O-O-O {[%clk 0:03:00]} 9... d5 {[%clk 0:02:59.7]}
10. Qe1 {[%clk 0:02:55.9]} 10... e5 {[%clk 0:02:58.6]} 11. Nxc6 {[%clk
0:02:55.7]} 11... bxc6 {[%clk 0:02:59.5]} 12. exd5 {[%clk 0:02:56.1]} 12... Nxd5
{[%clk 0:03:00.1]} 13. Bc4 {[%clk 0:02:55.9]} 13... Be6 {[%clk 0:02:58.7]} 14.
Kb1 {[%clk 0:02:55.2]} 14... Rb8 {[%clk 0:02:44]} 15. Bc5 {[%clk 0:02:50.8]}
15... e4 {[%clk 0:02:20.4]} 16. Bxd5 {[%clk 0:02:35.7]} 16... cxd5 {[%clk
0:02:14.4]} 17. Bxf8 {[%clk 0:02:18.7]} 17... Qxf8 {[%clk 0:02:12.9]} 18. b3
{[%clk 0:02:13.4]} 18... Qa3 {[%clk 0:02:05.2]} 19. fxe4 {[%clk 0:01:11.7]}
19... dxe4 {[%clk 0:01:55.8]} 20. Qe3 {[%clk 0:00:44.9]} 20... a5 {[%clk
0:00:48.1]} 21. Rd4 {[%clk 0:00:34.1]} 21... Qc5 {[%clk 0:00:22]} 22. Rd8+
{[%clk 0:00:31.9]} 22... Rxd8 {[%clk 0:00:22]} 23. Qxc5 {[%clk 0:00:32.1]} 23...
Rc8 {[%clk 0:00:21.1]} 24. Qxc8+ {[%clk 0:00:29.4]} 24... Bxc8 {[%clk
0:00:20.7]} 25. Nxe4 {[%clk 0:00:30.3]} 25... Bf5 {[%clk 0:00:20.4]} 26. Re1
{[%clk 0:00:29.9]} 26... Be5 {[%clk 0:00:18.6]} 27. Ng3 {[%clk 0:00:28.9]} 27...
Bxg3 {[%clk 0:00:17.4]} 28. hxg3 {[%clk 0:00:29.8]} 28... Kg7 {[%clk 0:00:18.1]}
29. Kb2 {[%clk 0:00:29.6]} 29... Be6 {[%clk 0:00:17]} 30. c4 {[%clk 0:00:30]}
30... Bd7 {[%clk 0:00:17]} 31. Kc3 {[%clk 0:00:30.4]} 31... Bc6 {[%clk
0:00:17.4]} 32. Re2 {[%clk 0:00:30.8]} 32... Kf6 {[%clk 0:00:17.5]} 33. Kd4
{[%clk 0:00:31.6]} 33... h5 {[%clk 0:00:18.1]} 34. Kc5 {[%clk 0:00:32]} 34...
Bd7 {[%clk 0:00:17.6]} 35. Kd6 {[%clk 0:00:32.2]} 35... Bg4 {[%clk 0:00:16.7]}
36. c5 {[%clk 0:00:32.8]} 36... Bxe2 {[%clk 0:00:16.3]} 37. c6 {[%clk
0:00:33.4]} 37... Ba6 {[%clk 0:00:16.9]} 38. Kd7 {[%clk 0:00:32.5]} 38... g5
{[%clk 0:00:16.1]} 39. a3 {[%clk 0:00:32.7]} 39... h4 {[%clk 0:00:12.8]} 40.
gxh4 {[%clk 0:00:33.2]} 40... gxh4 {[%clk 0:00:13.4]} 41. b4 {[%clk 0:00:34.1]}
41... axb4 {[%clk 0:00:11.7]} 42. axb4 {[%clk 0:00:35]} 42... Bb5 {[%clk
0:00:12.3]} 43. Kd6 {[%clk 0:00:33.6]} 43... Kg7 {[%clk 0:00:08.9]} 44. c7
{[%clk 0:00:33.1]} 44... Ba6 {[%clk 0:00:09.2]} 45. b5 {[%clk 0:00:33.6]} 45...
Bc8 {[%clk 0:00:09.4]} 46. Kc6 {[%clk 0:00:34.1]} 46... f5 {[%clk 0:00:08.3]}
47. b6 {[%clk 0:00:34.6]} 47... h3 {[%clk 0:00:06.2]} 48. b7 {[%clk 0:00:35.2]}
48... Bxb7+ {[%clk 0:00:05.4]} 49. Kxb7 {[%clk 0:00:35.6]} 49... hxg2 {[%clk
0:00:05.5]} 50. c8=Q {[%clk 0:00:35.9]} 50... g1=Q {[%clk 0:00:06.2]} 51. Qc3+
{[%clk 0:00:36.8]} 51... Kg6 {[%clk 0:00:05.5]} 52. Qc6+ {[%clk 0:00:36.7]}
52... Kh5 {[%clk 0:00:05.7]} 53. Qf6 {[%clk 0:00:35.5]} 53... Qg2+ {[%clk
0:00:05.1]} 54. Kc7 {[%clk 0:00:34.8]} 54... Qg6 {[%clk 0:00:04.9]} 55. Qh8+
{[%clk 0:00:33.5]} 55... Kg4 {[%clk 0:00:05.3]} 56. Qd4+ {[%clk 0:00:33.1]}
56... f4 {[%clk 0:00:05.3]} 57. Qg1+ {[%clk 0:00:31.7]} 57... Kf5 {[%clk
0:00:05.6]} 58. Qc5+ {[%clk 0:00:31.9]} 58... Kf6 {[%clk 0:00:05.5]} 59. Qd4+
{[%clk 0:00:31.5]} 59... Kg5 {[%clk 0:00:05.7]} 60. Qg1+ {[%clk 0:00:31.7]}
60... Kh6 {[%clk 0:00:05.1]} 61. Qh2+ {[%clk 0:00:32.2]} 61... Kg5 {[%clk
0:00:05.4]} 62. Qg2+ {[%clk 0:00:32.3]} 62... Kf5 {[%clk 0:00:05.5]} 63. Qd5+
{[%clk 0:00:32.4]} 63... Kf6 {[%clk 0:00:04.4]} 64. Qd4+ {[%clk 0:00:32.7]}
64... Kf5 {[%clk 0:00:04.3]} 65. Qd3+ {[%clk 0:00:33.1]} 65... Kg5 {[%clk
0:00:04.3]} 66. Qd5+ {[%clk 0:00:31.9]} 66... Kg4 {[%clk 0:00:04.1]} 67. Qg2+
{[%clk 0:00:32.2]} 67... Kh5 {[%clk 0:00:04]} 68. Qh3+ {[%clk 0:00:32.2]} 68...
Kg5 {[%clk 0:00:04.4]} 69. Qg2+ {[%clk 0:00:33]} 69... Kf5 {[%clk 0:00:04.7]}
70. Qd5+ {[%clk 0:00:33.1]} 70... Kg4 {[%clk 0:00:04.8]} 71. Qg2+ {[%clk
0:00:32.9]} 71... Kf5 {[%clk 0:00:05.1]} 1/2-1/2

[Event "*** Titled Tuesday Blitz"]
[Site "Chess.com"]
[Date "2020.05.05"]
[Round "5"]
[White "1random"]
[Black "Malysch"]
[Result "1/2-1/2"]
[WhiteElo "2524"]
[BlackElo "2387"]
[TimeControl "180+1"]
[EndTime "10:58:22 PDT"]
[Termination "Game drawn by repetition"]

1. e4 {[%clk 0:03:00.9]} 1... d5 {[%clk 0:02:59.6]} 2. exd5 {[%clk 0:03:01.8]}
2... Qxd5 {[%clk 0:03:00]} 3. Nc3 {[%clk 0:03:01.4]} 3... Qd6 {[%clk 0:03:00.4]}
4. d4 {[%clk 0:02:47.8]} 4... Nf6 {[%clk 0:03:00.4]} 5. Nf3 {[%clk 0:02:45.9]}
5... a6 {[%clk 0:03:00.4]} 6. Bd3 {[%clk 0:02:28.7]} 6... Nc6 {[%clk 0:02:59.3]}
7. Ne4 {[%clk 0:02:26.1]} 7... Nxe4 {[%clk 0:02:54.6]} 8. Bxe4 {[%clk 0:02:27]}
8... Bg4 {[%clk 0:02:54.7]} 9. c3 {[%clk 0:02:25.5]} 9... e6 {[%clk 0:02:54.5]}
10. h3 {[%clk 0:02:23.2]} 10... Bh5 {[%clk 0:02:52.9]} 11. O-O {[%clk
0:02:18.2]} 11... Bg6 {[%clk 0:02:50.1]} 12. Bxg6 {[%clk 0:02:09.7]} 12... hxg6
{[%clk 0:02:51]} 13. Bg5 {[%clk 0:02:10]} 13... Be7 {[%clk 0:02:49.3]} 14. Bxe7
{[%clk 0:02:07.6]} 14... Qxe7 {[%clk 0:02:41.9]} 15. Qb3 {[%clk 0:01:54.2]}
15... O-O-O {[%clk 0:02:37.3]} 16. Qc4 {[%clk 0:01:29.1]} 16... Qd6 {[%clk
0:02:26.5]} 17. Rfe1 {[%clk 0:01:25.8]} 17... Qd5 {[%clk 0:02:24.5]} 18. Qxd5
{[%clk 0:01:14]} 18... exd5 {[%clk 0:02:19.9]} 19. Ng5 {[%clk 0:01:09.8]} 19...
Rdf8 {[%clk 0:02:18.6]} 20. g3 {[%clk 0:01:03.4]} 20... Kd7 {[%clk 0:02:17.8]}
21. h4 {[%clk 0:01:03]} 21... Nd8 {[%clk 0:02:13.9]} 22. Re3 {[%clk 0:00:56.3]}
22... f6 {[%clk 0:02:12.1]} 23. Nf3 {[%clk 0:00:37]} 23... Re8 {[%clk
0:02:11.3]} 24. Rae1 {[%clk 0:00:36.4]} 24... Rxe3 {[%clk 0:02:10]} 25. Rxe3
{[%clk 0:00:37.3]} 25... Re8 {[%clk 0:02:09.4]} 26. Rxe8 {[%clk 0:00:37.6]}
26... Kxe8 {[%clk 0:02:10.3]} 27. Ne1 {[%clk 0:00:37.9]} 27... Kd7 {[%clk
0:02:07]} 28. Nd3 {[%clk 0:00:38.3]} 28... Ne6 {[%clk 0:02:07]} 29. Kg2 {[%clk
0:00:36.7]} 29... Kd6 {[%clk 0:02:06.1]} 30. Kf3 {[%clk 0:00:36.4]} 30... b6
{[%clk 0:02:03.9]} 31. b3 {[%clk 0:00:34.1]} 31... a5 {[%clk 0:01:47.2]} 32. Ke3
{[%clk 0:00:17.6]} 32... Ke7 {[%clk 0:01:38.9]} 33. c4 {[%clk 0:00:16.4]} 33...
Kd6 {[%clk 0:01:36.3]} 34. a3 {[%clk 0:00:13.9]} 34... c5 {[%clk 0:01:24.6]} 35.
dxc5+ {[%clk 0:00:12.9]} 35... Nxc5 {[%clk 0:01:24.5]} 36. Nf4 {[%clk 0:00:04]}
36... Nxb3 {[%clk 0:01:14.9]} 37. cxd5 {[%clk 0:00:03.8]} 37... b5 {[%clk
0:01:12.4]} 38. Nxg6 {[%clk 0:00:03.9]} 38... Kxd5 {[%clk 0:01:11.4]} 39. Kd3
{[%clk 0:00:02.6]} 39... Nc5+ {[%clk 0:01:01.1]} 40. Kc2 {[%clk 0:00:02.8]}
40... Ne4 {[%clk 0:01:00.5]} 41. Nf4+ {[%clk 0:00:03.2]} 41... Kc4 {[%clk
0:00:59.9]} 42. Nh5 {[%clk 0:00:03.1]} 42... b4 {[%clk 0:00:55.5]} 43. axb4
{[%clk 0:00:03.1]} 43... axb4 {[%clk 0:00:56.4]} 44. Nxg7 {[%clk 0:00:03.7]}
44... b3+ {[%clk 0:00:56.8]} 45. Kb2 {[%clk 0:00:04.2]} 45... Nxf2 {[%clk
0:00:57.6]} 46. Nf5 {[%clk 0:00:02.9]} 46... Nd1+ {[%clk 0:00:52.5]} 47. Kc1
{[%clk 0:00:02.6]} 47... Kc3 {[%clk 0:00:39.7]} 48. h5 {[%clk 0:00:02.9]} 48...
b2+ {[%clk 0:00:26.8]} 49. Kb1 {[%clk 0:00:03.3]} 49... Kb3 {[%clk 0:00:27.1]}
50. Nd4+ {[%clk 0:00:03.9]} 50... Ka3 {[%clk 0:00:26.9]} 51. Nb5+ {[%clk
0:00:03.4]} 51... Kb3 {[%clk 0:00:26.4]} 52. Nd4+ {[%clk 0:00:04.2]} 52... Ka3
{[%clk 0:00:19.1]} 53. Nb5+ {[%clk 0:00:04.4]} 53... Kb3 {[%clk 0:00:17.9]} 54.
h6 {[%clk 0:00:05.1]} 54... Ne3 {[%clk 0:00:09.5]} 55. h7 {[%clk 0:00:05.6]}
55... Nc4 {[%clk 0:00:09.9]} 56. Nd4+ {[%clk 0:00:06]} 56... Ka3 {[%clk
0:00:09.3]} 57. Nc2+ {[%clk 0:00:02.8]} 57... Kb3 {[%clk 0:00:09.1]} 58. Nd4+
{[%clk 0:00:02.6]} 58... Kc3 {[%clk 0:00:08.6]} 59. Ne2+ {[%clk 0:00:01.5]}
59... Kb3 {[%clk 0:00:08]} 60. Nd4+ {[%clk 0:00:01.8]} 1/2-1/2